bitfinex-derivatives/quotes_BNBF0:USTF0_20260110
["timestamp","ask_amount","ask_price","bid_price","bid_amount"]
[1768026819551,0.19142651,909.24,908.28,0.68524213]
[1768026819755,0.19142651,909.24,908.29,0.68524213]
[1768026819954,0.19142651,909.24,908.3,0.68524213]
[1768026820253,0.19142651,909.24,908.01,0.8249639]
[1768026820452,0.19142651,909.24,908.02,0.68499524]
[1768026820752,0.19142651,909.24,908.03,0.68499524]
[1768026820958,0.19142651,909.24,908.04,0.68499524]
[1768026821154,0.19142651,909.24,908.05,0.68499524]
[1768026821354,0.19142651,909.24,908.06,0.68499524]
[1768026821554,0.19142651,909.24,908.07,0.68499524]
[1768026821756,0.19142651,909.24,908.08,0.68499524]
[1768026821955,0.19142651,909.24,908.09,0.68499524]
[1768026822158,0.19142651,909.24,908.1,0.68492686]
[1768026822359,0.19142651,909.24,908.11,0.68492686]
[1768026822557,0.19142651,909.24,908.12,0.68492686]
[1768026822755,0.19142651,909.24,908.13,0.68492686]
[1768026822959,0.19142651,909.24,908.03,1.938]
[1768026822960,0.19142651,909.24,908.14,0.68492686]
[1768026823165,0.19142651,909.24,908.15,0.68492686]
[1768026823356,0.19142651,909.24,908.16,0.68492686]
[1768026823656,0.19142651,909.24,908.17,0.68492686]
[1768026823855,0.19142651,909.24,908.18,0.68492686]
[1768026824055,0.19142651,909.24,908.19,0.68492686]
[1768026824356,0.19142651,909.24,908.2,0.68492686]
[1768026824559,0.19142651,909.24,908.21,0.68492686]
[1768026824760,0.19142651,909.24,908.22,0.68492686]
[1768026824954,0.19142651,909.24,908.23,0.68492686]
[1768026825156,0.19142651,909.24,908.24,0.68492686]
[1768026825360,0.19142651,909.24,908.25,0.68492686]
[1768026825560,0.19142651,909.24,908.26,0.68492686]
[1768026825757,0.19142651,909.24,908.27,0.68492686]
[1768026825957,0.19142651,909.24,908.28,0.68492686]
[1768026826161,0.19142651,909.24,908.29,0.68492686]
[1768026826362,0.19142651,909.24,908.03,1.938]
[1768026826662,0.19142651,909.24,908.04,0.68487851]
[1768026826862,0.19142651,909.24,908.05,0.68487851]
[1768026827062,0.19142651,909.24,908.06,0.68487851]
[1768026827263,0.19142651,909.24,908.07,0.68487851]
[1768026827464,0.19142651,909.24,908.08,0.68487851]
[1768026827759,0.19142651,909.24,908.09,0.68487851]
[1768026827963,0.19142651,909.24,908.1,0.68487851]
[1768026828165,0.19142651,909.24,908.11,0.68487851]
[1768026828366,0.19142651,909.24,908.12,0.68487851]
[1768026828566,0.19142651,909.24,908.13,0.68487851]
[1768026828767,0.19142651,909.24,908.14,0.68468168]
[1768026828967,0.19142651,909.24,908.15,0.68468168]
[1768026829167,0.19142651,909.24,908.16,0.68468168]
[1768026829367,0.19142651,909.24,908.17,0.68468168]
[1768026829664,0.19142651,909.24,908.18,0.68468168]
[1768026829864,0.19142651,909.24,908.19,0.68468168]
[1768026830065,0.19142651,909.24,908.2,0.68468168]
[1768026830263,0.19142651,909.24,908.21,0.68468168]
[1768026830468,0.19142651,909.24,908.22,0.68468168]
[1768026830665,0.19142651,909.24,908.23,0.68468168]
[1768026830864,0.19142651,909.24,908.24,0.68468168]
[1768026831066,0.19142651,909.24,908.25,0.68468168]
[1768026831266,0.19142651,909.24,908.26,0.68468168]
[1768026831472,0.19142651,909.24,908.27,0.68468168]
[1768026831667,0.19142651,909.24,908.28,0.68468168]
[1768026831872,0.19142651,909.24,908.29,0.68468168]
[1768026832070,0.19142651,909.24,908.03,1.938]
[1768026832272,0.19142651,909.24,908.04,0.68473038]
[1768026832470,0.19142651,909.24,908.05,0.68473038]
[1768026832673,0.19142651,909.24,908.06,0.68473038]
[1768026832969,0.19142651,909.24,908.07,0.68473038]
[1768026833273,0.19142651,909.24,908.08,0.68473038]
[1768026833472,0.19142651,909.24,908.09,0.68473038]
[1768026833673,0.19142651,909.24,908.1,0.68473038]
[1768026833874,0.19142651,909.24,908.11,0.68473038]
[1768026834073,0.19142651,909.24,908.12,0.68473038]
[1768026834373,0.19142651,909.24,908.13,0.68473038]
[1768026834570,0.19142651,909.24,908.14,0.68473038]
[1768026834770,0.19142651,909.24,908.15,0.68473038]
[1768026835070,0.19142651,909.24,908.16,0.68473038]
[1768026835270,0.19142651,909.24,908.17,0.68473038]
[1768026835573,0.19142651,909.24,908.18,0.68473038]
[1768026835869,0.19142651,909.24,908.19,0.68473038]
[1768026836074,0.19142651,909.24,908.2,0.68473038]
[1768026836370,0.19142651,909.24,908.21,0.68473038]
[1768026836571,0.19142651,909.24,908.22,0.68473038]
[1768026836775,0.19142651,909.24,908.23,0.68473038]
[1768026836973,0.19142651,909.24,908.24,0.68473038]
[1768026837176,0.19142651,909.24,908.25,0.68473038]
[1768026837377,0.19142651,909.24,908.26,0.68473038]
[1768026837576,0.19142651,909.24,908.27,0.68473038]
[1768026837778,0.19142651,909.24,908.28,0.68473038]
[1768026837976,0.19142651,909.24,908.29,0.68473038]
[1768026838177,0.19142651,909.24,908.22,1.707]
[1768026838178,0.19142651,909.24,908.3,0.68473038]
[1768026838477,0.19142651,909.24,908.31,0.68473038]
[1768026838773,0.19142651,909.24,908.32,0.68473038]
[1768026838978,0.19142651,909.24,908.33,0.68473038]
[1768026839179,0.19142651,909.24,908.22,1.707]
[1768026839373,0.19142651,909.24,908.23,0.68505853]
[1768026839573,0.19142651,909.24,908.24,0.68505853]
[1768026839775,0.19142651,909.24,908.25,0.68505853]
[1768026840076,0.19142651,909.24,908.26,0.68505853]
[1768026840275,0.19142651,909.24,908.27,0.68505853]
[1768026840475,0.19142651,909.24,908.28,0.68505853]
[1768026840674,0.19142651,909.24,908.29,0.68505853]
[1768026840874,0.19142651,909.24,908.3,0.68505853]
[1768026841078,0.19142651,909.24,908.31,0.68505853]
[1768026841275,0.19142651,909.24,908.32,0.68505853]
[1768026841479,0.19142651,909.24,908.33,0.68505853]
[1768026841678,0.19142651,909.24,908.34,0.68505853]
[1768026841875,0.19142651,909.24,908.22,1.707]
[1768026842078,0.19142651,909.24,908.23,0.68528656]
[1768026842378,0.19142651,909.24,908.24,0.68528656]
[1768026842678,0.19142651,909.24,908.25,0.68528656]
[1768026842978,0.19142651,909.24,908.26,0.68528656]
[1768026843177,0.19142651,909.24,908.27,0.68528656]
[1768026843384,0.19142651,909.24,908.28,0.68528656]
[1768026843581,0.19142651,909.24,908.29,0.68528656]
[1768026843782,0.19142651,909.24,908.3,0.68528656]
[1768026844082,0.19142651,909.24,908.31,0.68528656]
[1768026844289,0.19142651,909.24,908.32,0.68528656]
[1768026844482,0.19142651,909.24,908.33,0.68528656]
[1768026844678,0.19142651,909.24,908.34,0.68528656]
[1768026844881,0.19142651,909.24,908.35,0.68528656]
[1768026845077,0.19142651,909.24,908.36,0.68528656]
[1768026845378,0.19142651,909.24,908.37,0.68578604]
[1768026845679,0.19142651,909.24,908.22,1.707]
[1768026845881,0.19142651,909.24,908.23,0.6857861]
[1768026846078,0.19142651,909.24,908.24,0.6857861]
[1768026846382,0.19142651,909.24,908.25,0.6857861]
[1768026846576,0.19142651,909.24,908.26,0.6857861]
[1768026846781,0.19142651,909.24,908.27,0.6857861]
[1768026846979,0.19142651,909.24,908.28,0.6857861]
[1768026847180,0.19142651,909.24,908.29,0.6857861]
[1768026847484,0.19142651,909.24,908.3,0.6857861]
[1768026847779,0.19142651,909.24,908.31,0.6857861]
[1768026848084,0.19142651,909.24,908.32,0.6857861]
[1768026848280,0.19142651,909.24,908.33,0.6857861]
[1768026848484,0.19142651,909.24,908.34,0.6857861]
[1768026848682,0.19142651,909.24,908.35,0.6857861]
[1768026848882,0.19142651,909.24,908.36,0.6857861]
[1768026849082,0.19142651,909.24,908.37,0.6857861]
[1768026849283,0.19142651,909.24,908.38,0.6857861]
[1768026849483,0.19142651,909.24,908.22,1.707]
[1768026849484,0.19142651,909.24,908.39,0.6857861]
[1768026849682,0.19142651,909.24,908.4,0.6857861]
[1768026849887,0.19142651,909.24,908.41,0.6857861]
[1768026850086,0.19142651,909.24,908.42,0.6857861]
[1768026850287,0.19142651,909.24,908.22,1.707]
[1768026850487,0.19142651,909.24,908.23,0.68704643]
[1768026850685,0.19142651,909.24,908.24,0.68704643]
[1768026850883,0.19142651,909.24,908.25,0.68704643]
[1768026851088,0.19142651,909.24,908.26,0.68704643]
[1768026851284,0.19142651,909.24,908.27,0.68704643]
[1768026851585,0.19142651,909.24,908.22,1.707]
[1768026851586,0.19142651,909.24,908.28,0.68704643]
[1768026851786,0.19142651,909.24,908.29,0.68704643]
[1768026851990,0.19142651,909.24,908.3,0.68704643]
[1768026852285,0.19142651,909.24,908.31,0.68704643]
[1768026852484,0.19142651,909.24,908.32,0.68704643]
[1768026852686,0.19142651,909.24,908.33,0.68704643]
[1768026852885,0.19142651,909.24,908.34,0.68704643]
[1768026853089,0.19142651,909.24,908.35,0.68704643]
[1768026853289,0.19142651,909.24,908.36,0.68704643]
[1768026853489,0.19142651,909.24,908.37,0.68704643]
[1768026853794,0.19142651,909.24,908.38,0.68704643]
[1768026853987,0.19142651,909.24,908.39,0.68704643]
[1768026854194,0.19142651,909.24,908.4,0.68704643]
[1768026854394,0.19142651,909.24,908.41,0.68704643]
[1768026854684,0.19142651,909.24,908.42,0.68704643]
[1768026854890,0.19142651,909.24,908.43,0.68704643]
[1768026855084,0.19142651,909.24,908.44,0.68704643]
[1768026855289,0.19142651,909.24,908.45,0.68704643]
[1768026855489,0.19142651,909.24,908.46,0.68704643]
[1768026855690,0.19142651,909.24,908.46,1.549]
[1768026856395,0.19142651,909.24,908.47,0.68775671]
[1768026856589,0.19142651,909.24,908.46,1.549]
[1768026856788,0.19142651,909.24,908.47,0.68775671]
[1768026856992,0.19142651,909.24,908.46,1.549]
[1768026857191,0.19142651,909.24,908.47,0.6888878]
[1768026857489,0.19142651,909.24,908.48,0.68907391]
[1768026857688,0.19142651,909.24,908.46,1.549]
[1768026857888,0.19142651,909.24,908.47,0.68907391]
[1768026858090,0.19142651,909.24,908.48,0.68907391]
[1768026858288,0.19142651,909.24,908.46,1.549]
[1768026858488,0.19142651,909.24,908.47,0.6890737]
[1768026858790,0.19142651,909.24,908.48,0.6890737]
[1768026858985,0.19142651,909.24,908.46,1.549]
[1768026859189,0.19142651,909.24,908.47,0.6890737]
[1768026859390,0.19142651,909.24,908.48,0.6890737]
[1768026859589,0.19142651,909.24,908.46,1.549]
[1768026859792,0.19142651,909.24,908.47,0.6890735]
[1768026859988,0.19142651,909.24,908.48,0.6890735]
[1768026860191,0.19142651,909.24,908.46,1.549]
[1768026860391,0.19142651,909.24,908.47,0.68907338]
[1768026860593,0.19142651,909.24,908.48,0.68907338]
[1768026860887,0.19142651,909.24,908.46,1.549]
[1768026861091,0.19142651,909.24,908.47,0.68907312]
[1768026861391,0.19142651,909.24,908.48,0.68907312]
[1768026861588,0.19142651,909.24,908.46,1.549]
[1768026861787,0.19142651,909.24,908.47,0.68907301]
[1768026861986,0.19142651,909.24,908.48,0.68907301]
[1768026862289,0.19142651,909.24,908.46,1.549]
[1768026862488,0.19142651,909.24,908.47,0.68907297]
[1768026862688,0.19142651,909.24,908.48,0.68907297]
[1768026862888,0.19142651,909.24,908.46,1.549]
[1768026863094,0.19142651,909.24,908.47,0.6890729]
[1768026863393,0.19142651,909.24,908.48,0.6890729]
[1768026863690,0.19142651,909.24,908.46,1.549]
[1768026863889,0.19142651,909.24,908.47,0.68907276]
[1768026864089,0.19142651,909.24,908.46,1.549]
[1768026864291,0.19142651,909.24,908.47,0.68907276]
[1768026864489,0.19142651,909.24,908.46,1.549]
[1768026864689,0.19142651,909.24,908.47,0.68907269]
[1768026864888,0.19142651,909.24,908.46,1.549]
[1768026865089,0.19142651,909.24,908.47,0.68907276]
[1768026865391,0.19142651,909.24,908.46,1.549]
[1768026865589,0.19142651,909.24,908.47,0.68907294]
[1768026865789,0.19142651,909.24,908.46,1.549]
[1768026865991,0.19142651,909.24,908.47,0.68907294]
[1768026866190,0.19142651,909.24,908.46,1.549]
[1768026866391,0.19142651,909.24,908.47,0.68907299]
[1768026866593,0.19142651,909.24,908.46,1.549]
[1768026866793,0.19142651,909.24,908.47,0.68907293]
[1768026866996,0.19142651,909.24,908.46,1.549]
[1768026867196,0.19142651,909.24,908.47,0.68907293]
[1768026867498,0.19142651,909.24,908.46,1.549]
[1768026867792,0.19142651,909.24,908.47,0.68907275]
[1768026867995,0.19142651,909.24,908.46,1.549]
[1768026868295,0.19142651,909.24,908.47,0.68907281]
[1768026868492,0.19142651,909.24,908.46,1.549]
[1768026868697,0.19142651,909.24,908.47,0.68907247]
[1768026868896,0.19142651,909.24,908.46,1.549]
[1768026869096,0.19142651,909.24,908.47,0.68907247]
[1768026869294,0.19142651,909.24,908.46,1.549]
[1768026869497,0.19142651,909.24,908.47,0.68907233]
[1768026869699,0.19142651,909.24,908.46,1.549]
[1768026869899,0.19142651,909.24,908.47,0.68907213]
[1768026870097,0.19142651,909.24,908.46,1.549]
[1768026870298,0.19142651,909.24,908.47,0.68907214]
[1768026870494,0.19142651,909.24,908.46,1.549]
[1768026870796,0.19142651,909.24,908.47,0.68907207]
[1768026870998,0.19142651,909.24,908.46,1.549]
[1768026871202,0.19142651,909.24,908.47,0.68907207]
[1768026871495,0.19142651,909.24,908.46,1.549]
[1768026871696,0.19142651,909.24,908.47,0.68907201]
[1768026871898,0.19142651,909.24,908.46,1.549]
[1768026872099,0.19142651,909.24,908.47,0.68907201]
[1768026872297,0.19142651,909.24,908.46,1.549]
[1768026872502,0.19142651,909.24,908.47,0.68907198]
[1768026872702,0.19142651,909.24,908.46,1.549]
[1768026872900,0.19142651,909.24,908.47,0.68907198]
[1768026873104,0.19142651,909.24,908.46,1.549]
[1768026873406,0.19142651,909.24,908.47,0.689072]
[1768026873601,0.19142651,909.24,908.46,1.549]
[1768026903234,0.19142651,909.24,908.47,0.68913505]
[1768026903535,0.19142651,909.24,908.46,1.549]
[1768026903829,0.19142651,909.24,908.47,0.68913347]
[1768026904032,0.19142651,909.24,908.46,1.549]
[1768026904230,0.19142651,909.24,908.47,0.68913347]
[1768026904432,0.19142651,909.24,908.46,1.549]
[1768026904632,0.19142651,909.24,908.47,0.68913188]
[1768026904835,0.19142651,909.24,908.46,1.549]
[1768026905034,0.19142651,909.24,908.47,0.68913254]
[1768026905336,0.19142651,909.24,908.46,1.549]
[1768026905535,0.19142651,909.24,908.47,0.68913053]
[1768026905736,0.19142651,909.24,908.46,1.549]
[1768026905937,0.19142651,909.24,908.47,0.68913053]
[1768026906239,0.19142651,909.24,908.46,1.549]
[1768026906540,0.19142651,909.24,908.47,0.6891289]
[1768026906738,0.19142651,909.24,908.46,1.549]
[1768026906938,0.19142651,909.24,908.47,0.68912884]
[1768026907136,0.19142651,909.24,908.46,1.549]
[1768026907336,0.19142651,909.24,908.47,0.68912929]
[1768026907535,0.19142651,909.24,908.46,1.549]
[1768026907838,0.19142651,909.24,908.47,0.6891272]
[1768026908142,0.19142651,909.24,908.46,1.549]
[1768026908436,0.19142651,909.24,908.47,0.6891278]
[1768026908639,0.19142651,909.24,908.46,1.549]
[1768026908940,0.19142651,909.24,908.47,0.68912585]
[1768026909136,0.19142651,909.24,908.46,1.549]
[1768026909340,0.19142651,909.24,908.47,0.68912619]
[1768026909546,0.19142651,909.24,908.46,1.549]
[1768026909840,0.19142651,909.24,908.47,0.68912433]
[1768026910041,0.19142651,909.24,908.46,1.549]
[1768026910240,0.19142651,909.24,908.47,0.68912407]
[1768026910540,0.19142651,909.24,908.46,1.549]
[1768026910741,0.19142651,909.24,908.47,0.68912248]
[1768026910938,0.19142651,909.24,908.46,1.549]
[1768026911142,0.19142651,909.24,908.47,0.68912234]
[1768026911442,0.19142651,909.24,908.46,1.549]
[1768026911640,0.19142651,909.24,908.47,0.68912052]
[1768026911838,0.19142651,909.24,908.18,0.82312089]
[1768026912038,0.19142651,909.24,908.19,0.68912045]
[1768026912338,0.19142651,909.24,908.2,0.68912045]
[1768026912542,0.19142651,909.24,908.21,0.68912045]
[1768026912740,0.19142651,909.24,908.22,0.68912045]
[1768026912938,0.19142651,909.24,908.23,0.68912045]
[1768026913244,0.19142651,909.24,908.24,0.68912045]
[1768026913444,0.19142651,909.24,908.25,0.68912045]
[1768026913646,0.19142651,909.24,908.26,0.68912045]
[1768026913845,0.19142651,909.24,908.27,0.68912045]
[1768026914149,0.19142651,909.24,908.28,0.68912045]
[1768026914344,0.19142651,909.24,908.29,0.68912045]
[1768026914546,0.19142651,909.24,908.3,0.68912045]
[1768026914744,0.19142651,909.24,908.31,0.68912045]
[1768026915043,0.19142651,909.24,908.06,4.08336628]
[1768026915249,0.19142651,909.24,908.07,0.68927399]
[1768026915443,0.19142651,909.24,908.08,0.68927399]
[1768026915647,0.19142651,909.24,908.09,0.68927399]
[1768026915943,0.19142651,909.24,908.1,2.01427399]
[1768026916144,0.19142651,909.24,908.11,0.68927399]
[1768026916345,0.19142651,909.24,908.12,0.68927399]
[1768026916547,0.19142651,909.24,908.13,0.68927399]
[1768026916749,0.19142651,909.24,908.14,0.68927399]
[1768026916945,0.19142651,909.24,908.15,0.68927399]
[1768026917149,0.19142651,909.24,908.16,0.68927399]
[1768026917350,0.19142651,909.24,908.1,1.325]
[1768026917649,0.19142651,909.24,908.11,0.68892756]
[1768026917848,0.19142651,909.24,908.12,0.68892756]
[1768026918149,0.19142651,909.24,908.13,0.68892756]
[1768026918349,0.19142651,909.24,908.14,0.68892756]
[1768026918546,0.19142651,909.24,908.1,1.325]
[1768026918751,0.19142651,909.24,908.11,0.68873948]
[1768026918946,0.19142651,909.24,908.12,0.68873948]
[1768026919150,0.19142651,909.24,908.13,0.68873948]
[1768026919447,0.19142651,909.24,908.1,1.325]
[1768026919645,0.19142651,909.24,908.11,0.6885811]
[1768026919848,0.19142651,909.24,908.12,0.6885811]
[1768026920049,0.19142651,909.24,908.1,1.325]
[1768026920345,0.19142651,909.24,908.11,0.68858911]
[1768026920546,0.19142651,909.24,908.1,1.325]
[1768026920849,0.19142651,909.24,908.11,0.68843454]
[1768026921050,0.19142651,909.24,908.1,1.325]
[1768026921248,0.19142651,909.24,908.11,0.68843441]
[1768026921446,0.19142651,909.24,908.1,1.325]
[1768026965093,0.19142651,909.24,907.26,0.82312089]
[1768026965390,0.19142651,909.24,907.27,0.68685282]
[1768026965590,0.19142651,909.24,907.28,0.68685282]
[1768026965888,0.19142651,909.24,907.29,0.68685282]
[1768026966089,0.19142651,909.24,907.3,0.68685282]
[1768026966288,0.19142651,909.24,907.31,0.68685282]
[1768026966492,0.19142651,909.24,907.32,0.68685282]
[1768026966693,0.19142651,909.24,907.33,0.68685282]
[1768026966888,0.19142651,909.24,907.34,0.68685282]
[1768026967189,0.19142651,909.24,907.35,0.68685282]
[1768026967390,0.19142651,909.24,907.36,0.68685282]
[1768026967594,0.19142651,909.24,907.37,0.68685282]
[1768026967793,0.19142651,909.24,907.38,0.68685282]
[1768026968094,0.19142651,909.24,907.39,0.68685282]
[1768026968291,0.19142651,909.24,907.4,0.68685282]
[1768026968487,0.19142651,909.24,907.38,1.221]
[1768026968488,0.19142651,909.24,907.41,0.68685282]
[1768026968694,0.19142651,909.24,907.42,0.68685282]
[1768026968887,0.19142651,909.24,907.43,0.68685282]
[1768026969092,0.19142651,909.24,907.44,0.68685282]
[1768026969394,0.19142651,909.24,907.45,0.68685282]
[1768026969590,0.19142651,909.24,907.46,0.68685282]
[1768026969790,0.19142651,909.24,907.47,0.68685282]
[1768026969993,0.19142651,909.24,907.48,0.68685282]
[1768026970193,0.19142651,909.24,907.38,1.221]
[1768026970194,0.19142651,909.24,907.49,0.68685282]
[1768026970390,0.19142651,909.24,907.5,0.68685282]
[1768026970596,0.19142651,909.24,907.51,0.68685282]
[1768026970795,0.19142651,909.24,907.52,0.68685282]
[1768026970991,0.19142651,909.24,907.53,0.68685282]
[1768026971195,0.19142651,909.24,907.54,0.68685282]
[1768026971390,0.19142651,909.24,907.55,0.68685282]
[1768026971593,0.19142651,909.24,907.56,0.68685282]
[1768026971791,0.19142651,909.24,907.57,0.68685282]
[1768026971992,0.19142651,909.24,907.58,0.68685282]
[1768026972291,0.19142651,909.24,907.59,0.68685282]
[1768026972494,0.19142651,909.24,907.6,0.68685282]
[1768026972693,0.19142651,909.24,907.61,0.68685282]
[1768026972893,0.19142651,909.24,907.62,0.68685282]
[1768026973098,0.19142651,909.24,907.63,0.68912871]
[1768026973295,0.19142651,909.24,907.64,0.68912871]
[1768026973498,0.19142651,909.24,907.65,0.68912871]
[1768026973698,0.19142651,909.24,907.66,0.68912871]
[1768026973894,0.19142651,909.24,907.67,0.68912871]
[1768026974100,0.19142651,909.24,907.68,0.68912871]
[1768026974298,0.19142651,909.24,907.69,0.68912871]
[1768026974598,0.19142651,909.24,907.7,0.68912871]
[1768026974902,0.19142651,909.24,907.71,0.68912871]
[1768026975098,0.19142651,909.24,907.72,0.68912871]
[1768026975300,0.19142651,909.24,907.73,0.68912871]
[1768026975497,0.19142651,909.24,907.74,0.68912871]
[1768026975697,0.19142651,909.24,907.75,0.68912871]
[1768026975902,0.19142651,909.24,907.76,0.68912871]
[1768026976098,0.19142651,909.24,907.77,0.68912871]
[1768026976298,0.19142651,909.24,907.78,0.68912871]
[1768026976498,0.19142651,909.24,907.79,0.68912871]
[1768026976699,0.19142651,909.24,907.51,0.82568329]
[1768026976700,0.19142651,909.24,907.8,0.68912871]
[1768026976903,0.19142651,909.24,907.51,0.82568329]
[1768026977104,0.19142651,909.24,907.52,0.69028408]
[1768026977305,0.19142651,909.24,907.53,0.69028408]
[1768026977504,0.19142651,909.24,907.54,0.69028408]
[1768026977703,0.19142651,909.24,907.55,0.69028408]
[1768026977903,0.19142651,909.24,907.56,0.69028408]
[1768026978108,0.19142651,909.24,907.57,0.69028408]
[1768026978305,0.19142651,909.24,907.58,0.69028408]
[1768026978507,0.19142651,909.24,907.38,2.32140832]
[1768026978508,0.19142651,909.24,907.59,0.69028408]
[1768026978707,0.19142651,909.24,907.6,0.69028408]
[1768026978907,0.19142651,909.24,907.61,0.69028408]
[1768026979108,0.19142651,909.24,907.62,0.69028408]
[1768026979406,0.19142651,909.24,907.63,0.69028408]
[1768026979607,0.19142651,909.24,907.64,0.69028408]
[1768026979807,0.19142651,909.24,907.65,0.69028408]
[1768026980004,0.19142651,909.24,907.66,0.69028408]
[1768026980208,0.19142651,909.24,907.67,0.69028408]
[1768026980408,0.19142651,909.24,907.68,0.69028408]
[1768026980608,0.19142651,909.24,907.69,0.69028408]
[1768026980808,0.19142651,909.24,907.7,0.69028408]
[1768026981108,0.19142651,909.24,907.71,0.69028408]
[1768026981304,0.19142651,909.24,907.72,0.69028408]
[1768026981608,0.19142651,909.24,907.73,0.69028408]
[1768026981808,0.19142651,909.24,907.42,0.82568329]
[1768026981809,2.75675331,909.22,907.42,0.82568329]
[1768026982105,2.75675331,909.22,907.43,0.69034411]
[1768026982307,2.75675331,909.22,907.44,0.69034411]
[1768026982506,2.75675331,909.22,907.45,0.69034411]
[1768026982706,2.75675331,909.22,907.46,0.69034411]
[1768026982910,2.75675331,909.22,907.47,0.69034411]
[1768026983209,2.75675331,909.22,907.48,0.69034411]
[1768026983411,2.75675331,909.22,907.49,0.69034411]
[1768026983612,2.75675331,909.22,907.5,0.69034411]
[1768026983811,2.75675331,909.22,907.42,0.82568329]
[1768026983812,2.75675331,909.21,907.51,0.69034411]
[1768026984008,2.75675331,909.21,907.52,0.69034411]
[1768026984210,2.75675331,909.21,907.53,0.69034411]
[1768026984411,2.75675331,909.2,907.54,0.69034411]
[1768026984707,2.75675331,909.2,907.55,0.69034411]
[1768026984906,2.75675331,909.2,907.56,0.69034411]
[1768026985110,2.75675331,909.2,907.57,0.69034411]
[1768026985311,2.75675331,909.2,907.58,0.69034411]
[1768026985510,2.75675331,909.2,907.59,0.69034411]
[1768026985710,2.75675331,909.2,907.6,0.69034411]
[1768026985911,2.75675331,909.2,907.61,0.69034411]
[1768026986212,2.75675331,909.2,907.62,0.69034411]
[1768026986408,2.75675331,909.2,907.63,0.69034411]
[1768026986612,2.75675331,909.2,907.64,0.69034411]
[1768026986810,2.75675331,909.2,907.65,0.69034411]
[1768026987008,2.75675331,909.2,907.66,0.69034411]
[1768026987209,2.75675331,909.2,907.67,0.69034411]
[1768026987510,5.61344904,909.2,907.68,0.69034411]
[1768026987709,5.61344904,909.2,907.39,0.82568329]
[1768026987912,5.61344904,909.2,907.4,0.69022046]
[1768026988112,5.61344904,909.2,907.41,0.69022046]
[1768026988308,5.61344904,909.2,907.42,0.69022046]
[1768026988612,5.61344904,909.2,907.43,0.69022046]
[1768026988809,5.61344904,909.2,907.44,0.69022046]
[1768026989011,5.61344904,909.2,907.45,0.69022046]
[1768026989208,5.61344904,909.2,907.46,0.69022046]
[1768026989413,5.61344904,909.2,907.47,0.69022046]
[1768026989613,5.61344904,909.2,907.39,0.82568329]
[1768026989614,2.85669573,909.2,907.48,0.69022046]
[1768026989811,2.85669573,909.2,907.49,0.69022046]
[1768026990116,2.85669573,909.2,907.5,0.69022046]
[1768026990315,2.85669573,909.2,907.51,0.69022046]
[1768026990518,2.85669573,909.2,907.52,0.69022046]
[1768026990813,2.85669573,909.2,907.53,0.69022046]
[1768026991013,2.85669573,909.2,907.54,0.69022046]
[1768026991213,2.85669573,909.2,907.55,0.69022046]
[1768026991418,2.85669573,909.2,907.56,0.69022046]
[1768026991617,2.85669573,909.2,907.57,0.69022046]
[1768026991817,0.19160411,908.8,907.58,0.69022046]
[1768026992018,0.19160411,908.8,907.59,0.69022046]
[1768026992214,0.19160411,908.8,907.6,0.69022046]
[1768026992416,0.19160411,908.8,907.61,0.69022046]
[1768026992719,0.19160411,908.8,907.62,0.69022046]
[1768026993020,0.19160411,908.8,907.63,0.69022046]
[1768026993216,0.19160411,908.8,907.64,0.69022046]
[1768026993420,0.19160411,908.8,907.65,0.69022046]
[1768026993715,0.19160411,908.8,907.66,0.69022046]
[1768026993919,0.19160411,908.8,907.67,0.69022046]
[1768026994119,0.19160411,908.8,907.68,0.69022046]
[1768026994317,0.19160411,908.8,907.67,1.277]
[1768026994514,0.19160411,908.8,907.68,0.69008503]
[1768026994716,0.19160411,908.8,907.67,1.277]
[1768026994915,0.19160411,908.8,907.68,0.69008503]
[1768026995217,0.19160411,908.8,907.67,1.277]
[1768027003734,0.19160411,908.8,907.68,0.68997817]
[1768027003934,0.19160411,908.8,907.67,1.277]
[1768027004134,0.19160411,908.8,907.68,0.68997817]
[1768027004335,0.19160411,908.8,907.67,1.277]
[1768027004634,0.19160411,908.8,907.68,0.68996899]
[1768027004834,0.19160411,908.8,907.67,1.277]
[1768027005035,0.19160411,908.8,907.68,0.68996892]
[1768027005236,0.19160411,908.8,907.67,1.277]
[1768027005535,0.19160411,908.8,907.68,0.6899715]
[1768027005735,0.19160411,908.8,907.67,1.277]
[1768027005931,0.19160411,908.8,907.68,0.68997131]
[1768027006232,0.19160411,908.8,907.67,1.277]
[1768027006531,0.19160411,908.8,907.68,0.68997425]
[1768027006735,0.19160411,908.8,907.67,1.277]
[1768027007032,0.19160411,908.8,907.68,0.68996317]
[1768027007233,0.19160411,908.8,907.67,1.277]
[1768027007440,0.19160411,908.8,907.68,0.69063389]
[1768027007638,0.19160411,908.8,907.67,1.277]
[1768027007837,0.19160411,908.8,907.68,0.69063395]
[1768027008038,0.19160411,908.8,907.67,1.277]
[1768027008238,0.19160411,908.8,907.68,0.69063395]
[1768027008537,0.19160411,908.8,907.67,1.277]